fUSD/lending_fUSD_20250930
["ID","MTS","AMOUNT","RATE_DAILY","PERIOD"]
[388515599,1759227073066,-500.0,0.00019488,2]
[388515600,1759227073075,-1397.5,0.00019488,2]
[388515601,1759227073085,-500.0,0.00019488,2]
[388515602,1759227073094,-500.0,0.00019488,2]
[388515603,1759227073103,-500.0,0.00019488,2]
[388515604,1759227073112,-500.0,0.00019488,2]
[388515605,1759227073121,-734.24,0.00019488,2]
[388515606,1759227073131,-500.0,0.00019488,2]
[388515607,1759227073141,-500.0,0.00019488,2]
[388515608,1759227073151,-1706.3,0.00019488,2]
[388515609,1759227073161,-655.90658479,0.00019488,2]
[388515610,1759227073186,-151.0,0.00019484,2]
[388515611,1759227073197,-653.71341521,0.00019488,2]
[388515612,1759227073207,-500.0,0.00019488,2]
[388515613,1759227073216,-500.0,0.00019488,2]
[388515614,1759227073225,-500.0,0.00019488,2]
[388515615,1759227073234,-948.54,0.00019488,2]
[388515616,1759227073243,-500.0,0.00019488,2]
[388515617,1759227073252,-500.0,0.00019488,2]
[388515618,1759227073262,-735.08,0.00019488,2]
[388515619,1759227073271,-500.0,0.00019488,2]
[388515620,1759227073280,-1051.18,0.00019488,2]
[388515621,1759227073290,-500.0,0.00019488,2]
[388515622,1759227073298,-610.18518333,0.00019488,2]
[388515623,1759227073308,-500.0,0.00019488,2]
[388515624,1759227073317,-500.0,0.00019488,2]
[388515625,1759227073327,-573.25,0.00019488,2]
[388515626,1759227073336,-2481.8,0.00019488,2]
[388515627,1759227073346,-1459.29,0.00019488,2]
[388515628,1759227073355,-500.0,0.00019488,2]
[388515629,1759227073365,-217.11320045,0.00019488,2]
[388515630,1759227073381,-382.51679955,0.00019488,2]
[388515631,1759227073390,-517.25,0.00019488,2]
[388515632,1759227073399,-137.23320046,0.00019488,2]
[388515633,1759227073411,-487.20679954,0.00019488,2]
[388515634,1759227073422,-611.84,0.00019488,2]
[388515635,1759227073431,-531.25,0.00019488,2]
[388515636,1759227073440,-500.0,0.00019489,2]
[388515637,1759227073450,-452.84623433,0.00019489,2]
[388515638,1759227073460,-150.0,0.00019489,2]
[388515639,1759227073469,-500.0,0.00019489,2]
[388515640,1759227073478,-500.0,0.00019489,2]
[388515641,1759227073487,-500.0,0.00019489,2]
[388515642,1759227073498,-691.29,0.00019489,2]
[388515643,1759227073508,-691.29,0.00019489,2]
[388515644,1759227073517,-238.80046013,0.00019489,2]
[388515645,1759227073529,-501.60953987,0.00019489,2]
[388515646,1759227073539,-740.41,0.00019489,2]
[388515647,1759227073550,-1000.0,0.0001949,2]
[388515648,1759227073560,-526.0,0.0001949,2]
[388515649,1759227073571,-377.30029492,0.0001949,2]
[388515650,1759227073596,-155.265988,0.00019483,2]
[388515652,1759227073608,-122.69970508,0.0001949,2]
[388515653,1759227073618,-500.0,0.0001949,2]
[388515654,1759227073627,-848.33791442,0.0001949,2]
[388515655,1759227073759,-497.49832,0.00019383,2]
[388515684,1759227140918,5513.0,0.000158,5]
[388515872,1759227766517,-171.25,0.00016712,2]
[388515931,1759227982620,171.21,8.695e-05,2]
[388515932,1759227982808,171.21,0.00011594,2]
[388515933,1759227983004,171.21,0.00014492,2]
[388515960,1759228094883,-1917.03079154,0.00017,2]
[388515961,1759228097985,-600.517259,0.00017,2]
[388515962,1759228099951,-2880.04754861,0.00017,2]
[388515963,1759228101428,-159.07450352,0.00017,2]
[388515964,1759228103557,-2399.482741,0.00017,2]
[388515965,1759228106075,-1081.08206661,0.00017,2]
[388515966,1759228107432,-1759.84342987,0.00017,2]
[388515967,1759228109892,-1720.72137774,0.00017,2]
[388515968,1759228111878,-159.07450352,0.00017,2]
[388515969,1759228115735,-1120.20411874,0.00017,2]
[388515971,1759228118794,-2360.36068887,0.00017,2]
[388515975,1759228135032,-2840.92549648,0.00017,2]
[388515993,1759228232627,-376.55368136,0.00017,2]
[388515994,1759228232639,-558.80631588,0.00017,2]
[388515995,1759228232650,-3917.33492033,0.00017,2]
[388515996,1759228232662,-1034.70840774,0.00017,2]
[388515997,1759228232672,-318.49,0.00017253,2]
[388515998,1759228232682,-150.0,0.00017254,7]
[388515999,1759228232691,-200.0,0.00017355,2]
[388516000,1759228232701,-8506.04208631,0.0001737,2]
[388516001,1759228232711,-289.58,0.00017376,2]
[388516002,1759228232721,-264.8,0.00017376,2]
[388516003,1759228232731,-8506.04208631,0.0001739,2]
[388516004,1759228232740,-171.21,0.0001739,2]
[388516005,1759228232750,-8506.04208631,0.00017391,2]
[388516006,1759228232759,-287.28,0.00017408,2]
[388516007,1759228232769,-1200.0,0.00017421,2]
[388516008,1759228232778,-1942.67,0.00017422,2]
[388516009,1759228232788,-8506.04208631,0.00017425,2]
[388516010,1759228232798,-288.0,0.00017432,2]
[388516011,1759228232807,-300.0,0.00017432,2]
[388516012,1759228232817,-150.0,0.00017433,2]
[388516013,1759228232827,-150.0,0.00017433,2]
[388516014,1759228232837,-150.0,0.00017433,2]
[388516015,1759228232847,-150.0,0.00017433,2]
[388516016,1759228232857,-150.0,0.00017433,2]
[388516017,1759228232867,-150.0,0.00017433,2]
[388516018,1759228232878,-150.0,0.00017433,2]
[388516019,1759228232888,-150.0,0.00017433,2]
[388516020,1759228232898,-150.0,0.00017433,2]
[388516021,1759228232907,-150.0,0.00017433,2]
[388516022,1759228232919,-150.0,0.00017433,2]
[388516023,1759228232929,-150.0,0.00017433,2]
[388516024,1759228232938,-150.0,0.00017433,2]
[388516025,1759228232947,-150.0,0.00017433,2]
[388516026,1759228232957,-150.0,0.00017433,2]
[388516027,1759228232966,-150.0,0.00017433,2]
[388516028,1759228232975,-150.0,0.00017433,2]
[388516029,1759228232985,-150.0,0.00017433,2]
[388516030,1759228232994,-8506.04208631,0.00017435,2]
[388516031,1759228233004,-8506.04208631,0.0001745,2]
[388516032,1759228233014,-8506.04208631,0.00017475,2]
[388516033,1759228233023,-2000.0,0.00017487,2]
[388516034,1759228233034,-195.0,0.00017487,2]
[388516035,1759228233043,-2500.0,0.00017487,2]
[388516036,1759228233053,-150.0,0.0001754,2]
[388516037,1759228233062,-150.0,0.0001754,2]
[388516038,1759228233072,-521.23399219,0.0001761,2]
[388516039,1759228233082,-500.0,0.00017619,2]
[388516040,1759228233091,-500.0,0.00017619,2]
[388516041,1759228233101,-500.0,0.00017619,2]
[388516042,1759228233111,-500.0,0.00017619,2]
[388516043,1759228233120,-500.0,0.00017619,2]
[388516044,1759228233130,-404.96626,0.00017619,2]
[388516045,1759228233140,-500.0,0.00017619,2]
[388516046,1759228233152,-192.07696056,0.00017619,2]
[388516047,1759228233162,-500.0,0.00017619,2]
[388516048,1759228233171,-173.38325243,0.00017619,2]
[388516049,1759228233181,-500.0,0.00017619,2]
[388516050,1759228233192,-500.0,0.00017619,2]
[388516051,1759228233201,-500.0,0.00017619,2]
[388516052,1759228233211,-500.0,0.00017619,2]
[388516053,1759228233220,-500.0,0.00017619,2]
[388516054,1759228233231,-500.0,0.00017619,2]
[388516055,1759228233240,-500.0,0.00017619,2]
[388516056,1759228233249,-500.0,0.00017619,2]
[388516057,1759228233259,-500.0,0.00017619,2]
[388516058,1759228233268,-284.18186502,0.00017619,2]
[388516059,1759228233277,-299.33939208,0.00017619,2]
[388516060,1759228233287,-500.0,0.00017619,2]
[388516061,1759228233296,-500.0,0.00017619,2]
[388516062,1759228233305,-350.0,0.00017619,2]
[388516063,1759228233315,-500.0,0.00017619,2]
[388516064,1759228233324,-500.0,0.00017619,2]
[388516065,1759228233334,-500.0,0.00017619,2]
[388516066,1759228233343,-500.0,0.00017619,2]
[388516067,1759228233353,-500.0,0.00017619,2]
[388516068,1759228233362,-500.0,0.00017619,2]
[388516069,1759228233373,-500.0,0.00017619,2]
[388516070,1759228233383,-500.0,0.00017619,2]
[388516071,1759228233393,-500.0,0.00017619,2]
[388516072,1759228233403,-1069.13,0.0001762,2]
[388516073,1759228233413,-150.0,0.00017648,2]
[388516074,1759228233423,-150.0,0.00017648,2]
[388516075,1759228233433,-150.0,0.00017648,2]
[388516076,1759228233442,-150.0,0.00017648,2]
[388516077,1759228233452,-150.0,0.00017648,2]
[388516078,1759228233462,-150.0,0.00017648,2]
[388516079,1759228233471,-150.0,0.00017675,2]
[388516080,1759228233480,-150.0,0.00017756,2]
[388516081,1759228233490,-150.0,0.00017756,2]
[388516082,1759228233500,-223.62,0.0001777,2]
[388516083,1759228233509,-150.0,0.00017863,2]
[388516084,1759228233519,-150.0,0.00017863,2]
[388516085,1759228233528,-150.0,0.00017863,2]
[388516086,1759228233538,-150.0,0.00017863,2]
[388516087,1759228233547,-150.0,0.00017863,2]
[388516088,1759228233556,-150.0,0.00017863,2]
[388516089,1759228233567,-500.0,0.00017886,2]
[388516090,1759228233576,-179.85306498,0.00017886,2]
[388516091,1759228233586,-179.52,0.00017915,2]
[388516092,1759228233597,-150.0,0.00017917,2]
[388516093,1759228233608,-150.0,0.00017917,2]
[388516094,1759228233618,-150.0,0.00017917,2]
[388516095,1759228233629,-386.98,0.0001794,3]
[388516096,1759228233639,-593.24480309,0.00017958,2]
[388516097,1759228233660,-491.0360497,0.00017958,2]
[388516098,1759228233812,-342.48315084,0.00017958,2]
[388516099,1759228233842,-843.72182876,0.00017958,2]
[388516100,1759228233853,-1009.87494404,0.00017958,2]
[388516101,1759228233865,-9243.31922357,0.00017958,2]
[388516102,1759228233875,-150.0,0.00017971,2]
[388516103,1759228233884,-150.0,0.00017971,2]
[388516104,1759228233893,-1000.0,0.00017985,2]
[388516105,1759228233903,-1108.4,0.00018058,2]
[388516106,1759228233912,-150.0,0.00018079,2]
[388516107,1759228233922,-150.0,0.00018079,2]
[388516108,1759228233931,-150.0,0.00018079,2]
[388516109,1759228233941,-150.0,0.00018079,2]
[388516110,1759228233950,-150.0,0.00018079,2]
[388516111,1759228233960,-150.0,0.00018079,2]
[388516112,1759228233969,-150.0,0.00018079,2]
[388516113,1759228233979,-150.0,0.00018079,2]
[388516114,1759228233988,-2446.35,0.00018093,2]
[388516115,1759228233998,-179.78495042,0.000181,2]
[388516116,1759228234007,-150.0,0.00018159,2]
[388516117,1759228234017,-162.38,0.00018167,2]
[388516118,1759228234026,-150.0,0.00018186,2]
[388516119,1759228234036,-150.0,0.00018186,2]
[388516120,1759228234046,-151.0,0.00018202,2]
[388516121,1759228234055,-275.22888194,0.00018202,2]
[388516122,1759228234065,-151.0,0.00018202,2]
[388516123,1759228234075,-151.0,0.00018202,2]
[388516124,1759228234084,-151.0,0.00018202,2]
[388516125,1759228234094,-151.0,0.00018202,2]
[388516126,1759228234104,-151.0,0.00018202,2]
[388516127,1759228234115,-151.0,0.00018202,2]
[388516128,1759228234124,-200.0,0.00018202,2]
[388516129,1759228234133,-151.0,0.00018202,2]
[388516130,1759228234143,-151.0,0.00018202,2]
[388516131,1759228234155,-151.0,0.00018202,2]
[388516132,1759228234165,-151.0,0.00018202,2]
[388516133,1759228234174,-151.0,0.00018202,2]
[388516134,1759228234184,-526.07321155,0.00018202,2]
[388516135,1759228234193,-151.0,0.00018202,2]
[388516136,1759228234203,-151.0,0.00018202,2]
[388516137,1759228234212,-151.0,0.00018202,2]
[388516138,1759228234228,-151.0,0.00018202,2]
[388516139,1759228234237,-151.0,0.00018202,2]
[388516140,1759228234246,-151.0,0.00018202,2]
[388516141,1759228234255,-151.0,0.00018202,2]
[388516142,1759228234265,-151.0,0.00018202,2]
[388516143,1759228234275,-151.0,0.00018202,2]
[388516144,1759228234284,-151.0,0.00018202,2]
[388516145,1759228234293,-151.0,0.00018202,2]
[388516146,1759228234303,-151.0,0.00018202,2]
[388516147,1759228234312,-151.0,0.00018202,2]
[388516148,1759228234321,-151.0,0.00018202,2]
[388516149,1759228234332,-151.0,0.00018202,2]
[388516150,1759228234341,-151.0,0.00018202,2]
[388516151,1759228234351,-151.0,0.00018202,2]
[388516152,1759228234360,-151.0,0.00018202,2]
[388516153,1759228234369,-151.0,0.00018202,2]
[388516154,1759228234379,-151.0,0.00018202,2]
[388516155,1759228234388,-500.0,0.00018202,2]
[388516156,1759228234397,-151.0,0.00018202,2]
[388516157,1759228234406,-151.0,0.00018202,2]
[388516158,1759228234415,-500.0,0.00018202,2]
[388516159,1759228234424,-151.0,0.00018202,2]
[388516160,1759228234433,-151.23025195,0.00018202,2]
[388516161,1759228234443,-717.25311644,0.00018211,2]
[388516162,1759228234452,-474.52590314,0.00018212,2]
[388516163,1759228234461,-20936.81,0.00018213,2]
[388516164,1759228234472,-264.8,0.00018245,2]
[388516165,1759228234481,-165.94,0.00018262,2]
[388516166,1759228234491,-150.0,0.00018294,2]
[388516167,1759228234500,-150.0,0.00018294,2]
[388516168,1759228234510,-150.0,0.00018294,2]
[388516169,1759228234520,-150.0,0.00018294,2]
[388516170,1759228234529,-150.0,0.00018294,2]
[388516171,1759228234539,-150.0,0.00018294,2]
[388516172,1759228234548,-150.0,0.000183,2]
[388516173,1759228234558,-5022.25,0.00018356,2]
[388516174,1759228234567,-250.0,0.0001836,2]
[388516175,1759228234577,-150.0,0.00018401,2]
[388516176,1759228234587,-150.0,0.00018401,2]
[388516177,1759228234597,-150.0,0.00018401,2]
[388516178,1759228234607,-150.0,0.00018401,2]
[388516179,1759228234617,-150.0,0.00018401,2]
[388516180,1759228234627,-150.0,0.00018401,2]
[388516181,1759228234637,-500.0,0.00018438,2]
[388516182,1759228234646,-317.51,0.00018484,2]
[388516183,1759228234656,-1274.78,0.000185,7]
[388516184,1759228234665,-150.0,0.00018509,2]
[388516185,1759228234675,-150.0,0.00018509,2]
[388516186,1759228234685,-150.0,0.00018509,2]
[388516187,1759228234695,-150.0,0.00018509,2]
[388516188,1759228234705,-150.0,0.00018509,2]
[388516189,1759228234714,-150.0,0.00018509,2]
[388516190,1759228234724,-9000.0,0.00018582,2]
[388516191,1759228234733,-668.64786949,0.00018582,2]
[388516192,1759228234743,-266.47528178,0.00018582,2]
[388516193,1759228234753,-601.3376128,0.00018582,2]
[388516194,1759228234762,-151.0,0.00018582,2]
[388516195,1759228234772,-151.0,0.00018582,2]
[388516196,1759228234781,-1000.0,0.00018582,2]
[388516197,1759228234791,-500.0,0.00018582,2]
[388516198,1759228234800,-160.0,0.00018582,2]
[388516199,1759228234810,-895.24465905,0.00018582,2]
[388516200,1759228234819,-500.0,0.00018582,2]
[388516201,1759228234832,-322.6107,0.00018582,2]
[388516202,1759228234841,-500.0,0.00018582,2]
[388516203,1759228234851,-500.0,0.00018582,2]
[388516204,1759228234860,-500.0,0.00018582,2]
[388516205,1759228234870,-500.0,0.00018582,2]
[388516206,1759228234879,-500.0,0.00018582,2]
[388516207,1759228234888,-500.0,0.00018582,2]
[388516208,1759228234897,-500.0,0.00018582,2]
[388516209,1759228234907,-500.0,0.00018582,2]
[388516210,1759228234917,-151.0,0.00018582,2]
[388516211,1759228234927,-159.0,0.00018582,2]
[388516212,1759228234936,-7965.41053268,0.00018582,2]
[388516213,1759228234946,-607.7834334,0.00018582,2]
[388516214,1759228234955,-150.0,0.00018617,2]
[388516215,1759228234965,-150.0,0.00018617,2]
[388516216,1759228234974,-8260.13072239,0.00018637,2]
[388516217,1759228234984,-150.0,0.00018643,2]
[388516218,1759228234995,-8565.75555911,0.00018692,2]
[388516219,1759228235005,-260.88737959,0.000187,2]
[388516220,1759228235014,-250.0,0.000187,2]
[388516221,1759228235024,-29548.3694797,0.00018721,2]
[388516222,1759228235034,-150.0,0.00018724,2]
[388516223,1759228235043,-150.0,0.00018724,2]
[388516224,1759228235053,-150.0,0.00018724,2]
[388516225,1759228235062,-150.0,0.00018724,2]
[388516226,1759228235072,-150.0,0.00018724,2]
[388516227,1759228235082,-150.0,0.00018724,2]
[388516228,1759228235092,-150.0,0.00018724,2]
[388516229,1759228235101,-150.0,0.00018724,2]
[388516230,1759228235110,-5457.84111941,0.00018747,2]
[388516231,1759228235134,-3424.84739539,0.00018747,2]
[388516232,1759228235144,-171.27,0.0001875,2]
[388516233,1759228235158,-73.15762964,0.0001875,2]
[388516234,1759228235170,-126.84237036,0.0001875,2]
[388516235,1759228235180,-445.93052841,0.00018802,2]
[388516236,1759228235193,-1806.96018299,0.00018802,2]
[388516237,1759228235202,-150.0,0.00018832,2]
[388516238,1759228235212,-150.0,0.00018832,2]
[388516239,1759228235222,-150.0,0.00018886,2]
[388516240,1759228235234,-150.0,0.00018886,2]
[388516241,1759228235243,-150.0,0.00018886,2]
[388516242,1759228235253,-590.20747831,0.00018931,2]
[388516243,1759228235263,-150.0,0.00018939,2]
[388516244,1759228235272,-150.0,0.00018939,2]
[388516245,1759228235283,-150.0,0.00018939,2]
[388516246,1759228235293,-150.0,0.00018939,2]
[388516247,1759228235302,-150.0,0.00018939,2]
[388516248,1759228235312,-150.0,0.00018939,2]
[388516249,1759228235321,-2219.1241307,0.00019,2]
[388516250,1759228235394,-606.48713533,0.00019,2]
[388516251,1759228235404,-5084.35376203,0.00019,2]
[388516261,1759228238592,-11285.9264297,0.00019,2]
[388516262,1759228238645,-4940.73293507,0.00019,2]
[388516263,1759228238671,-4154.15000001,0.00019,2]
[388516267,1759228240289,-0.01258431,0.00019,2]
[388516268,1759228240315,-1396.78216301,0.00019,2]
[388516271,1759228243647,-500.0,0.00017862,2]
[388516272,1759228243657,-500.0,0.00017862,2]
[388516273,1759228243667,-335.93147249,0.00017862,2]
[388516274,1759228243676,-378.61104992,0.00019,2]
[388516275,1759228243685,-1549.10602559,0.00019,2]
[388516276,1759228243695,-806.89,0.00019041,2]
[388516277,1759228243704,-939.66,0.00019041,2]
[388516278,1759228243713,-806.89,0.00019041,2]
[388516279,1759228243723,-806.89,0.00019041,2]
[388516280,1759228243732,-800.44,0.00019041,2]
[388516281,1759228243742,-150.0,0.00019047,2]
[388516282,1759228243751,-150.0,0.00019047,2]
[388516283,1759228243761,-281.99467847,0.00019067,2]
[388516284,1759228243770,-375.70898702,0.00019067,2]
[388516285,1759228243779,-500.0,0.00019067,2]
[388516286,1759228243788,-300.05246574,0.00019067,2]
[388516287,1759228243798,-344.41821546,0.00019067,2]
[388516288,1759228243808,-603.0,0.00019068,2]
[388516289,1759228243817,-1305.0,0.00019068,2]
[388516290,1759228243826,-569.0,0.00019068,2]
[388516291,1759228243838,-1583.0,0.00019068,2]
[388516292,1759228243847,-814.0,0.00019068,2]
[388516293,1759228243856,-900.0,0.00019068,2]
[388516294,1759228243866,-4235.0,0.00019068,2]
[388516295,1759228243875,-1180.0,0.00019068,2]
[388516296,1759228243884,-1263.0,0.00019068,2]
[388516297,1759228243893,-6228.0,0.00019068,2]
[388516298,1759228243903,-4179.0,0.00019068,2]
[388516299,1759228243912,-3396.0,0.00019068,2]
[388516300,1759228243921,-787.0,0.00019068,2]
[388516301,1759228243931,-1680.0,0.00019113,2]
[388516302,1759228243940,-300.0,0.00019114,2]
[388516303,1759228243951,-264.8,0.00019114,2]
[388516304,1759228243961,-150.0,0.00019128,2]
[388516305,1759228243971,-151.0,0.0001913,2]
[388516306,1759228243980,-150.0,0.00019155,2]
[388516307,1759228243990,-150.0,0.00019155,2]
[388516308,1759228243999,-150.0,0.00019155,2]
[388516309,1759228244009,-150.0,0.00019155,2]
[388516310,1759228244019,-150.0,0.00019155,2]
[388516311,1759228244029,-150.0,0.00019155,2]
[388516312,1759228244039,-238.35179449,0.00019176,2]
[388516313,1759228244048,-2000.0,0.00019176,2]
[388516314,1759228244058,-195.0,0.00019176,2]
[388516315,1759228244067,-2500.0,0.00019176,2]
[388516316,1759228244076,-3579.5199656,0.00019177,2]
[388516317,1759228244085,-1899.43,0.00019178,2]
[388516318,1759228244095,-2689.75,0.00019178,2]
[388516319,1759228244104,-1488.34,0.00019178,2]
[388516320,1759228244114,-1995.85,0.00019178,2]
[388516321,1759228244123,-1128.67,0.00019178,2]
[388516322,1759228244132,-812.86,0.00019178,2]
[388516323,1759228244142,-500.0,0.00019178,2]
[388516324,1759228244151,-2355.78,0.00019178,2]
[388516325,1759228244160,-500.0,0.00019178,2]
[388516326,1759228244169,-5801.95,0.00019178,2]
[388516327,1759228244179,-500.0,0.00019178,2]
[388516328,1759228244191,-500.0,0.00019178,2]
[388516329,1759228244200,-4408.08,0.00019178,2]
[388516330,1759228244210,-500.0,0.00019178,2]
[388516331,1759228244220,-2682.33,0.00019178,2]
[388516332,1759228244230,-500.0,0.00019178,2]
[388516333,1759228244239,-729.56,0.00019178,2]
[388516334,1759228244248,-3157.46,0.00019178,2]
[388516335,1759228244260,-500.0,0.00019178,2]
[388516336,1759228244270,-500.0,0.00019178,2]
[388516337,1759228244279,-400.38715232,0.00019178,2]
[388516338,1759228244289,-500.0,0.00019178,2]
[388516339,1759228244298,-3183.01,0.00019178,2]
[388516340,1759228244307,-1707.49,0.00019178,2]
[388516341,1759228244316,-527.97,0.00019178,2]
[388516342,1759228244326,-1193.47,0.00019178,2]
[388516343,1759228244335,-500.0,0.00019178,2]
[388516344,1759228244344,-2006.41,0.00019178,2]
[388516345,1759228244353,-871.1,0.00019178,2]
[388516346,1759228244362,-804.32,0.00019178,2]
[388516347,1759228244371,-1567.05,0.00019178,2]
[388516348,1759228244380,-514.2,0.00019178,2]
[388516349,1759228244389,-2526.89,0.00019178,2]
[388516350,1759228244398,-500.0,0.00019178,2]
[388516351,1759228244407,-4316.74,0.00019178,2]
[388516352,1759228244416,-500.0,0.00019178,2]
[388516353,1759228244425,-1419.8,0.00019178,2]
[388516354,1759228244434,-500.0,0.00019178,2]
[388516355,1759228244443,-500.0,0.00019178,2]
[388516356,1759228244452,-635.05,0.00019178,2]
[388516357,1759228244461,-509.77,0.00019178,2]
[388516358,1759228244471,-500.0,0.00019178,2]
[388516359,1759228244480,-151.0,0.00019178,2]
[388516360,1759228244489,-150.0,0.00019178,2]
[388516361,1759228244499,-175.53,0.00019178,2]
[388516362,1759228244508,-190.1,0.00019178,2]
[388516363,1759228244517,-412.48,0.00019178,2]
[388516364,1759228244526,-167.75,0.00019178,2]
[388516365,1759228244536,-545.07,0.00019178,2]
[388516366,1759228244545,-150.0,0.00019178,2]
[388516367,1759228244554,-1196.36,0.00019178,2]
[388516368,1759228244563,-545.07,0.00019178,2]
[388516369,1759228244572,-150.0,0.00019178,2]
[388516370,1759228244581,-1196.36,0.00019178,2]
[388516371,1759228244590,-175.53,0.00019178,2]
[388516372,1759228244599,-150.0,0.00019178,2]
[388516373,1759228244608,-150.0,0.00019178,2]
[388516374,1759228244617,-412.48,0.00019178,2]
[388516375,1759228244626,-167.75,0.00019178,2]
[388516376,1759228244637,-150.0,0.00019178,2]
[388516377,1759228244647,-167.75,0.00019178,2]
[388516378,1759228244656,-1196.36,0.00019178,2]
[388516379,1759228244665,-175.53,0.00019178,2]
[388516380,1759228244674,-150.0,0.00019178,2]
[388516381,1759228244683,-150.0,0.00019178,2]
[388516382,1759228244693,-545.07,0.00019178,2]
[388516383,1759228244703,-412.48,0.00019178,2]
[388516384,1759228244712,-175.53,0.00019178,2]
[388516385,1759228244721,-545.07,0.00019178,2]
[388516386,1759228244731,-1196.36,0.00019178,2]
[388516387,1759228244741,-167.75,0.00019178,2]
[388516388,1759228244750,-150.0,0.00019178,2]
[388516389,1759228244759,-150.0,0.00019178,2]
[388516390,1759228244768,-412.48,0.00019178,2]
[388516391,1759228244777,-150.0,0.00019178,2]
[388516392,1759228244786,-1196.36,0.00019178,2]
[388516393,1759228244795,-175.53,0.00019178,2]
[388516394,1759228244805,-545.07,0.00019178,2]
[388516395,1759228244814,-150.0,0.00019178,2]
[388516396,1759228244824,-150.0,0.00019178,2]
[388516397,1759228244832,-412.48,0.00019178,2]
[388516398,1759228244842,-167.75,0.00019178,2]
[388516399,1759228244851,-1196.36,0.00019178,2]
[388516400,1759228244861,-172.04,0.00019178,2]
[388516401,1759228244870,-354.21,0.00019178,2]
[388516402,1759228244880,-175.53,0.00019178,2]
[388516403,1759228244889,-545.07,0.00019178,2]
[388516404,1759228244898,-167.75,0.00019178,2]
[388516405,1759228244907,-392.2,0.00019178,2]
[388516406,1759228244916,-300.0,0.00019178,2]
[388516407,1759228244925,-175.53,0.00019178,2]
[388516408,1759228244935,-167.75,0.00019178,2]
[388516409,1759228244944,-1196.36,0.00019178,2]
[388516410,1759228244953,-545.07,0.00019178,2]
[388516411,1759228244962,-150.0,0.00019178,2]
[388516412,1759228244971,-412.48,0.00019178,2]
[388516413,1759228244980,-175.53,0.00019178,2]
[388516414,1759228244989,-1196.36,0.00019178,2]
[388516415,1759228244998,-545.07,0.00019178,2]
[388516416,1759228245007,-150.0,0.00019178,2]
[388516417,1759228245016,-167.75,0.00019178,2]
[388516418,1759228245026,-412.48,0.00019178,2]
[388516419,1759228245035,-545.07,0.00019178,2]
[388516420,1759228245044,-1196.36,0.00019178,2]
[388516421,1759228245054,-161.85,0.00019178,2]
[388516422,1759228245063,-167.75,0.00019178,2]
[388516423,1759228245072,-150.0,0.00019178,2]
[388516424,1759228245081,-412.48,0.00019178,2]
[388516425,1759228245090,-3067.0,0.00019195,2]
[388516426,1759228245099,-1000.0,0.00019202,2]
[388516427,1759228245108,-2500.0,0.00019202,2]
[388516428,1759228245117,-150.0,0.00019262,4]
[388516429,1759228245125,-150.0,0.00019262,4]
[388516430,1759228245134,-2319.45956836,0.00019263,2]
[388516431,1759228245143,-183.90839756,0.0001927,2]
[388516432,1759228245152,-1266.0,0.00019273,2]
[388516433,1759228245161,-500.0,0.00019273,7]